bitfinex/quotes_BTCUSD_20250527
["timestamp","ask_amount","ask_price","bid_price","bid_amount"]
[1748357556103,0.20229869,109290.0,109280.0,0.44180946]
[1748357556741,0.23529869,109290.0,109280.0,0.44180946]
[1748357556970,0.26719869,109290.0,109280.0,0.44180946]
[1748357557217,0.30372115,109290.0,109280.0,0.34104946]
[1748357557441,0.30372115,109290.0,109280.0,0.44180946]
[1748357557886,0.26719869,109290.0,109280.0,0.44180946]
[1748357559445,0.26719869,109290.0,109280.0,0.73830946]
[1748357560311,0.26719869,109290.0,109280.0,0.63754946]
[1748357560538,0.26719869,109290.0,109280.0,0.64608202]
[1748357560539,0.57275869,109290.0,109280.0,0.64608202]
[1748357560957,0.57275869,109290.0,109280.0,0.30608151]
[1748357561179,0.65561394,109290.0,109280.0,0.30608151]
[1748357561360,0.57271869,109290.0,109280.0,0.30608169]
[1748357561824,0.57271869,109290.0,109280.0,0.30608136]
[1748357562700,0.57271869,109290.0,109280.0,0.29754946]
[1748357562919,0.57271869,109290.0,109280.0,0.30608036]
[1748357563817,0.57271869,109290.0,109280.0,0.30608031]
[1748357564035,0.65560994,109290.0,109280.0,0.30608031]
[1748357564462,0.57271869,109290.0,109280.0,0.30608031]
[1748357565341,0.57271869,109290.0,109280.0,0.00958031]
[1748357565782,0.57271869,109290.0,109280.0,0.0095793]
[1748357566226,0.57271869,109290.0,109280.0,0.00957949]
[1748357566439,0.26719869,109290.0,109280.0,0.00957949]
[1748357566681,0.20229869,109290.0,109280.0,0.44468781]
[1748357567339,0.20229869,109290.0,109280.0,0.00958044]
[1748357568419,0.20229869,109290.0,109280.0,0.34104946]
[1748357568648,0.20229869,109290.0,109280.0,0.77615778]
[1748357569314,0.19314915,109290.0,109280.0,0.77615778]
[1748357571083,0.19314915,109290.0,109280.0,0.00959495]
[1748357571084,0.3466031,109290.0,109280.0,0.00959495]
[1748357571302,0.3466031,109290.0,109280.0,0.00959516]
[1748357571939,0.3466031,109290.0,109280.0,0.00104946]
[1748357572147,0.43742279,109290.0,109280.0,0.00960275]
[1748357572989,0.43742279,109290.0,109280.0,0.0096054]
[1748357573870,0.43742279,109290.0,109280.0,0.00104946]
[1748357574097,0.43742279,109290.0,109280.0,0.00960598]
[1748357575215,0.43742279,109290.0,109280.0,0.00960681]
[1748357575435,0.43742279,109290.0,109280.0,0.00104946]
[1748357575680,0.43742279,109290.0,109280.0,0.00960692]
[1748357576339,0.43742279,109290.0,109280.0,0.00960695]
[1748357577001,0.43742279,109290.0,109280.0,0.00960406]
[1748357577223,0.43742279,109290.0,109280.0,0.00104946]
[1748357577439,0.43742279,109290.0,109280.0,0.00960401]
[1748357577656,0.43742279,109290.0,109280.0,0.00960403]
[1748357578089,0.74274279,109290.0,109280.0,0.00960403]
[1748357578758,0.74274279,109290.0,109280.0,0.00959991]
[1748357579184,0.6519231,109290.0,109280.0,0.00959991]
[1748357579390,0.6519231,109290.0,109280.0,0.0095997]
[1748357579592,0.6519231,109290.0,109280.0,0.00959969]
[1748357580471,0.6519231,109290.0,109280.0,0.00959817]
[1748357580911,0.3466031,109290.0,109280.0,0.00959783]
[1748357581356,0.3466031,109290.0,109280.0,0.00959815]
[1748357581590,0.2842031,109290.0,109280.0,0.44470647]
[1748357581823,0.19314915,109290.0,109280.0,0.4711176]
[1748357582034,0.19314915,109290.0,109280.0,0.43615778]
[1748357582466,0.19314915,109290.0,109280.0,0.00104946]
[1748357583813,0.19314915,109290.0,109270.0,0.43510832]
[1748357583814,0.19216673,109280.0,109270.0,0.43510832]
[1748357584029,0.00915147,109270.0,109260.0,0.82892]
[1748357584254,0.19218432,109270.0,109260.0,1.33254832]
[1748357584480,0.19218432,109270.0,109260.0,0.90598961]
[1748357584692,0.19218432,109270.0,109260.0,0.50598988]
[1748357585178,0.19218432,109270.0,109260.0,0.50599082]
[1748357585614,0.19318432,109270.0,109260.0,0.50799081]
[1748357586037,0.19318432,109270.0,109260.0,0.80449081]
[1748357586472,0.19318432,109270.0,109260.0,0.8044917]
[1748357586705,0.19318432,109270.0,109260.0,0.8064917]
[1748357587131,0.19318432,109270.0,109260.0,0.79794]
[1748357587339,0.19318432,109270.0,109260.0,0.8064917]
[1748357587559,0.19318432,109270.0,109260.0,1.24160002]
[1748357587780,0.19318432,109270.0,109260.0,2.50028395]
[1748357587999,0.19318432,109270.0,109260.0,2.33022895]
[1748357588440,0.19318432,109270.0,109260.0,2.54923762]
[1748357588659,0.19318432,109270.0,109260.0,2.40472862]
[1748357589111,0.19318432,109270.0,109260.0,2.39617632]
[1748357589320,0.19318432,109270.0,109260.0,1.525647]
[1748357589555,0.19318432,109270.0,109260.0,1.94477299]
[1748357589773,0.19318432,109270.0,109260.0,1.94477347]
[1748357590230,0.19318432,109270.0,109260.0,1.94477382]
[1748357591323,0.19318432,109270.0,109260.0,1.9447737]
[1748357591761,0.19318432,109270.0,109260.0,1.7493067]
[1748357592205,0.19318432,109270.0,109260.0,1.74930672]
[1748357592430,0.19318432,109270.0,109260.0,1.74075332]
[1748357593078,0.19318432,109270.0,109260.0,1.74930672]
[1748357594235,0.19318432,109270.0,109260.0,1.24428195]
[1748357594464,0.03760504,109270.0,109260.0,4.3476283]
[1748357594768,0.02845349,109270.0,109260.0,4.35678019]
[1748357595059,0.02845349,109270.0,109260.0,4.75678019]
[1748357595060,0.01930219,109270.0,109260.0,4.75678019]
[1748357595413,0.02845366,109270.0,109260.0,4.75678019]
[1748357595596,0.02845366,109270.0,109260.0,7.23382419]
[1748357595843,0.02845366,109270.0,109260.0,7.21621919]
[1748357596325,0.03760521,109270.0,109260.0,7.13856319]
[1748357596537,0.03760521,109270.0,109260.0,6.92976719]
[1748357596960,0.02845358,109270.0,109260.0,6.92976719]
[1748357597222,0.03760505,109270.0,109260.0,6.92976719]
[1748357597448,0.22063857,109270.0,109260.0,5.15205333]
[1748357597994,0.20233596,109270.0,109260.0,2.63684727]
[1748357598194,0.20233596,109270.0,109260.0,0.346]
[1748357598422,0.23473596,109270.0,109260.0,0.56356894]
[1748357598630,0.26513596,109270.0,109260.0,0.56356894]
[1748357598841,0.26513596,109270.0,109260.0,0.58046852]
[1748357599331,0.20233596,109270.0,109260.0,1.0070279]
[1748357600209,0.20233596,109270.0,109260.0,0.9065079]
[1748357600419,0.20233596,109270.0,109260.0,1.0070279]
[1748357601516,0.20233596,109270.0,109260.0,1.19922998]
[1748357601777,0.21148709,109270.0,109260.0,1.32993615]
[1748357602001,0.1931844,109270.0,109260.0,1.32078393]
[1748357602250,0.02845382,109270.0,109260.0,3.47889035]
[1748357602694,0.18301695,109280.0,109270.0,0.34]
[1748357602922,0.18301695,109280.0,109270.0,1.85651527]
[1748357603188,0.18301695,109280.0,109270.0,1.96250512]
[1748357603397,0.21374732,109290.0,109280.0,0.7204255]
[1748357603398,0.00929726,109290.0,109280.0,0.7204255]
[1748357603626,0.0184468,109290.0,109280.0,4.90557277]
[1748357603843,0.0275966,109290.0,109280.0,5.30557277]
[1748357604055,0.03674648,109290.0,109280.0,5.30557277]
[1748357604274,0.03674623,109290.0,109280.0,5.32011362]
[1748357604495,0.02759643,109290.0,109280.0,5.34091362]
[1748357604717,0.00114797,109290.0,109280.0,6.29000162]
[1748357604950,0.01029726,109290.0,109280.0,5.9148933]
[1748357605190,0.01029726,109290.0,109280.0,6.11433762]
[1748357605432,0.01944672,109290.0,109280.0,4.37380662]
[1748357605658,0.20244683,109290.0,109280.0,2.59533]
[1748357605882,0.20244683,109290.0,109280.0,2.71723407]
[1748357606114,0.1932972,109290.0,109280.0,2.59448937]
[1748357606345,0.1932972,109290.0,109280.0,2.60364]
[1748357606573,0.1932972,109290.0,109280.0,2.21279055]
[1748357606842,0.1932972,109290.0,109280.0,2.64179155]
[1748357607106,0.1932972,109290.0,109280.0,3.05094193]
[1748357607559,0.1932972,109290.0,109280.0,2.65094193]
[1748357607797,0.1932972,109290.0,109280.0,2.71923293]
[1748357608855,0.1932972,109290.0,109280.0,4.17633993]
[1748357609064,0.1932972,109290.0,109280.0,4.16718955]
[1748357609278,0.1932972,109290.0,109280.0,2.75602155]
[1748357609496,0.1932972,109290.0,109280.0,2.76517202]
[1748357609709,0.21159679,109290.0,109280.0,2.7743224]
[1748357609921,0.21159679,109290.0,109280.0,2.7922704]
[1748357610151,0.21159679,109290.0,109280.0,2.69204155]
[1748357610373,0.21159679,109290.0,109280.0,2.64479202]
[1748357610838,0.20159679,109290.0,109280.0,2.64479202]
[1748357611488,0.20159679,109290.0,109280.0,2.6539424]
[1748357611922,0.20159679,109290.0,109280.0,2.8318864]
[1748357612577,0.20159679,109290.0,109280.0,2.7008894]
[1748357613006,0.20159679,109290.0,109280.0,2.69173902]
[1748357613248,0.25584716,109290.0,109280.0,1.87219509]
[1748357613529,0.24669728,109290.0,109280.0,0.262617]
[1748357613731,0.24669728,109290.0,109280.0,0.274202]
[1748357613942,0.24669728,109290.0,109280.0,0.614202]
[1748357614610,0.24669728,109290.0,109280.0,0.554202]
[1748357615250,0.24669728,109290.0,109280.0,0.98931032]
[1748357615467,0.24669728,109290.0,109280.0,0.850702]
[1748357617214,0.18329728,109290.0,109280.0,1.46882642]
[1748357617440,0.18329728,109290.0,109280.0,1.37686427]
[1748357618085,0.18329728,109290.0,109280.0,1.55988037]
[1748357619184,0.18329728,109290.0,109280.0,3.17394589]
[1748357619395,0.18329728,109290.0,109280.0,3.11676789]
[1748357619605,0.17414732,109290.0,109280.0,2.84019827]
[1748357619814,0.17414732,109290.0,109280.0,2.90019827]
[1748357620029,0.17414732,109290.0,109280.0,1.32394227]
[1748357620261,0.17414732,109290.0,109280.0,2.93975627]
[1748357620712,0.17414732,109290.0,109280.0,2.62795327]
[1748357620996,0.17414732,109290.0,109280.0,2.55990227]
[1748357621202,0.23724732,109290.0,109280.0,2.05575527]
[1748357621618,0.20694732,109290.0,109280.0,2.05575527]
[1748357621828,0.20694732,109290.0,109280.0,1.65575527]
[1748357622511,0.20694732,109290.0,109280.0,1.83877137]
[1748357622728,0.18329712,109290.0,109280.0,3.42859852]
[1748357622950,0.18329712,109290.0,109280.0,2.91353289]
[1748357623168,0.18329712,109290.0,109280.0,2.60820217]
[1748357623378,0.18329712,109290.0,109280.0,2.23541527]
[1748357623804,0.18329712,109290.0,109280.0,3.54033627]
[1748357624052,0.18329712,109290.0,109280.0,2.74172195]
[1748357624302,0.31759352,109290.0,109280.0,1.557856]
[1748357624519,0.31759352,109290.0,109280.0,1.261356]
[1748357624760,0.4587052,109290.0,109280.0,1.26990293]
[1748357624986,0.4587052,109290.0,109280.0,1.54990293]
[1748357625205,0.4587052,109290.0,109280.0,1.20990293]
[1748357625417,0.4587052,109290.0,109280.0,1.20990288]
[1748357625851,0.7633852,109290.0,109280.0,1.20990288]
[1748357626333,0.7633852,109290.0,109280.0,1.20990028]
[1748357626766,0.7633852,109290.0,109280.0,1.20990048]
[1748357627639,0.7633852,109290.0,109280.0,1.20890048]
[1748357628385,0.7633852,109290.0,109280.0,1.200356]
[1748357628639,0.7663852,109290.0,109280.0,1.200356]
[1748357628870,0.70032747,109290.0,109280.0,1.200356]
[1748357629086,0.69932747,109290.0,109280.0,1.200356]
[1748357629575,0.32445107,109290.0,109280.0,1.201356]
[1748357629816,0.62909107,109290.0,109280.0,1.201356]
[1748357631861,0.23339712,109290.0,109280.0,1.61566768]
[1748357632072,0.21644798,109290.0,109280.0,5.26090609]
[1748357632299,0.21644865,109290.0,109280.0,6.92328497]
[1748357632537,0.21644865,109290.0,109280.0,7.22082074]
[1748357632763,0.01514954,109290.0,109280.0,8.0708028]
[1748357632975,0.02129892,109290.0,109280.0,8.0916028]
[1748357633191,0.03044863,109290.0,109280.0,8.0916028]
[1748357633402,0.02744863,109290.0,109280.0,8.0906028]
[1748357633618,0.03659843,109290.0,109280.0,3.1233478]
[1748357633842,0.03659843,109290.0,109280.0,8.0915628]
[1748357634059,0.02744863,109290.0,109280.0,8.0905628]
[1748357634245,0.03759843,109290.0,109280.0,8.0925628]
[1748357634708,0.01014938,109290.0,109280.0,8.0925628]
[1748357634921,0.02844847,109290.0,109280.0,8.0935628]
[1748357635150,0.01929884,109290.0,109280.0,8.0935628]
[1748357635439,0.02844855,109290.0,109280.0,8.0935628]
[1748357635678,0.02844847,109290.0,109280.0,8.0935628]
[1748357635914,0.20229878,109290.0,109280.0,3.46109695]
[1748357636133,0.20229878,109290.0,109280.0,4.47922137]
[1748357636363,0.20229878,109290.0,109280.0,4.19187217]
[1748357636596,0.21144874,109290.0,109280.0,6.78460818]
[1748357636824,0.01929943,109290.0,109280.0,6.35704439]
[1748357637068,0.22059862,109290.0,109280.0,6.34789418]
[1748357637598,0.01929943,109290.0,109280.0,6.35704439]
[1748357637832,0.02844931,109290.0,109280.0,8.12223139]
[1748357638068,0.01929918,109290.0,109280.0,8.16857224]
[1748357638270,0.02844906,109290.0,109280.0,8.16857224]
[1748357639122,0.01929901,109290.0,109280.0,8.16857224]
[1748357639930,0.01014938,109290.0,109280.0,8.16857224]
[1748357640177,0.01929901,109290.0,109280.0,8.16857224]
[1748357640390,0.01929867,109290.0,109280.0,8.16857224]
[1748357640617,0.0274457,109300.0,109290.0,0.21044824]
[1748357640839,0.21240999,109310.0,109300.0,4.34480944]
[1748357641056,0.21245949,109310.0,109300.0,5.27974088]
[1748357641275,0.19416366,109310.0,109300.0,2.92106327]
[1748357641519,0.26736006,109310.0,109300.0,1.13573895]
[1748357641757,0.33016006,109310.0,109300.0,0.27209395]
[1748357642264,0.33016006,109310.0,109300.0,0.34640563]
[1748357642483,0.33016006,109310.0,109300.0,0.27209395]
[1748357642951,0.33216006,109310.0,109300.0,0.27209395]
[1748357643444,0.25896366,109310.0,109300.0,0.27209395]
[1748357643684,0.32401177,109310.0,109290.0,0.2965]
[1748357643929,0.25683157,109300.0,109290.0,0.6365]
[1748357644164,0.25683157,109300.0,109290.0,0.73654]
[1748357644404,0.25683157,109300.0,109290.0,0.39654]
[1748357644870,0.08299783,109300.0,109290.0,0.75474652]
[1748357645133,0.27512957,109300.0,109290.0,1.82913709]
[1748357645629,0.07384862,109300.0,109290.0,1.83828647]
[1748357645885,0.04309745,109310.0,109300.0,1.41310498]
[1748357646129,0.22160685,109310.0,109300.0,2.04277147]
[1748357646414,0.22160676,109310.0,109300.0,2.26867256]
[1748357646669,0.20331144,109310.0,109300.0,1.68923695]
[1748357646885,0.25383157,109300.0,109290.0,0.341]
[1748357647105,0.25383157,109300.0,109290.0,0.44004]
[1748357647540,0.22213157,109300.0,109290.0,0.96620227]
[1748357647755,0.23399886,109290.0,109280.0,2.69116432]
[1748357647973,0.23399886,109290.0,109280.0,3.09211827]
[1748357647974,0.26689886,109290.0,109280.0,3.09211827]
[1748357648196,0.26689886,109290.0,109280.0,2.32039432]
[1748357648418,0.26689886,109290.0,109280.0,1.655196]
[1748357648638,0.26689886,109290.0,109280.0,1.755236]
[1748357649131,0.26589886,109290.0,109280.0,2.095236]
[1748357649402,0.23299886,109290.0,109280.0,2.62139827]
[1748357649658,0.23099886,109290.0,109280.0,2.62139827]
[1748357650172,0.23199886,109290.0,109280.0,3.22758427]
[1748357650866,0.23199886,109290.0,109280.0,3.23058427]
[1748357651305,0.23199886,109290.0,109280.0,3.22758427]
[1748357651566,0.26409886,109290.0,109280.0,2.71996432]
[1748357651798,0.26409886,109290.0,109280.0,2.72096432]
[1748357652545,0.26409886,109290.0,109280.0,2.285856]
[1748357653238,0.26409886,109290.0,109280.0,2.28625]
[1748357654172,0.26409886,109290.0,109280.0,2.37730395]
[1748357654652,0.26409886,109290.0,109280.0,2.08924995]
[1748357654880,0.26409886,109290.0,109280.0,2.41010395]
[1748357655103,0.26409886,109290.0,109280.0,2.18928995]
[1748357655318,0.26409886,109290.0,109280.0,2.30550395]
[1748357655840,0.26409886,109290.0,109280.0,2.199402]
[1748357656086,0.26409886,109290.0,109280.0,2.098236]
[1748357656331,0.26409886,109290.0,109280.0,2.199402]
[1748357656575,0.26409886,109290.0,109280.0,2.199143]
[1748357656787,0.26409886,109290.0,109280.0,2.098236]
[1748357657012,0.26409886,109290.0,109280.0,2.199143]
[1748357657504,0.26409886,109290.0,109280.0,1.998196]
[1748357657745,0.26409886,109290.0,109280.0,1.703396]
[1748357657983,0.26409886,109290.0,109280.0,1.643396]
[1748357658198,0.26409886,109290.0,109280.0,1.543356]
[1748357658420,0.26409886,109290.0,109280.0,1.643396]
[1748357658650,0.26409886,109290.0,109280.0,4.12286232]
[1748357658885,0.02844872,109290.0,109280.0,4.40440394]
[1748357659124,0.20229903,109290.0,109280.0,4.00774041]
[1748357659391,0.20229903,109290.0,109280.0,4.40774041]
[1748357659632,0.20229903,109290.0,109280.0,4.47689079]
[1748357659888,0.01014954,109290.0,109280.0,2.85456679]
[1748357660149,0.22974782,109290.0,109280.0,6.499768]
[1748357660404,0.22059853,109290.0,109280.0,6.45165879]
[1748357660645,0.22059853,109290.0,109280.0,5.83374979]
[1748357660878,0.22059853,109290.0,109280.0,5.56297179]
[1748357661099,0.22059853,109290.0,109280.0,5.48896679]
[1748357662001,0.21144899,109290.0,109280.0,5.48615994]
[1748357662226,0.21144899,109290.0,109280.0,5.44977849]
[1748357662445,0.20229919,109290.0,109280.0,4.78789695]
[1748357662665,0.20229919,109290.0,109280.0,5.22300527]
[1748357662883,0.20229919,109290.0,109280.0,3.23021827]
[1748357663103,0.20229919,109290.0,109280.0,3.58809395]
[1748357663337,0.20229919,109290.0,109280.0,3.57986027]
[1748357663548,0.20229919,109290.0,109280.0,3.90213127]
[1748357663989,0.26359919,109290.0,109280.0,3.55940327]
[1748357664206,0.26359919,109290.0,109280.0,3.59407227]
[1748357664898,0.26359919,109290.0,109280.0,3.78623917]
[1748357665124,0.26359919,109290.0,109280.0,3.43149589]
[1748357665341,0.26359919,109290.0,109280.0,4.23851936]
[1748357665580,0.23229886,109290.0,109280.0,4.24766966]
[1748357665804,0.24144882,109290.0,109280.0,4.22936889]
[1748357666029,0.27314882,109290.0,109280.0,4.22936889]
[1748357666249,0.27314882,109290.0,109280.0,3.43149589]
[1748357666475,0.27314882,109290.0,109280.0,6.45516989]
[1748357666706,0.27314882,109290.0,109280.0,6.18457889]
[1748357666933,0.27314882,109290.0,109280.0,5.97100889]
[1748357667401,0.27314882,109290.0,109280.0,5.98015936]
[1748357667631,0.27314882,109290.0,109280.0,5.98015952]
[1748357668207,0.26399919,109290.0,109280.0,6.65853228]
[1748357668429,0.26399919,109290.0,109280.0,6.69512283]
[1748357669028,0.26399919,109290.0,109280.0,6.33691628]
[1748357669213,0.26399919,109290.0,109280.0,6.61691628]
[1748357669413,0.26399919,109290.0,109280.0,6.62606683]
[1748357669844,0.26399919,109290.0,109280.0,3.86160983]
[1748357670030,0.26399919,109290.0,109280.0,6.63606683]
[1748357671033,0.26399919,109290.0,109280.0,6.70434783]
[1748357671929,0.25484931,109290.0,109280.0,6.69388065]
[1748357672198,0.25484931,109290.0,109280.0,6.44836065]
[1748357672817,0.25484931,109290.0,109280.0,6.4575112]
[1748357673033,0.25484931,109290.0,109280.0,6.67692965]
[1748357673679,0.25484931,109290.0,109280.0,6.68608028]
[1748357673876,0.25484931,109290.0,109280.0,6.89087928]
[1748357674985,0.25484931,109290.0,109280.0,6.96937228]
[1748357675200,0.25484931,109290.0,109280.0,6.94652228]
[1748357675438,0.25484931,109290.0,109280.0,6.89652128]
[1748357676153,0.25484931,109290.0,109280.0,6.82828628]
[1748357677084,0.25484931,109290.0,109280.0,6.91781928]
[1748357677748,0.25484931,109290.0,109280.0,6.90776028]
[1748357678202,0.25484931,109290.0,109280.0,6.91276028]
[1748357678695,0.25484931,109290.0,109280.0,6.92191083]
[1748357679160,0.25484931,109290.0,109280.0,4.21116405]
[1748357679386,0.25484931,109290.0,109280.0,4.44571885]
[1748357679606,0.25484931,109290.0,109280.0,4.45486948]
[1748357679860,0.0020495,109310.0,109300.0,0.55042898]
[1748357680095,0.0111972,109310.0,109300.0,5.09017709]
[1748357680323,0.0111972,109310.0,109300.0,3.80453209]
[1748357680606,0.0020495,109310.0,109300.0,4.11557294]
[1748357680851,0.01114611,109330.0,109320.0,0.22493135]
[1748357681091,0.002,109330.0,109320.0,6.90732138]
[1748357681346,0.04519939,109340.0,109330.0,0.55037124]
[1748357681594,0.04519939,109340.0,109330.0,4.04916027]
[1748357681864,0.00861828,109340.0,109330.0,4.06370112]
[1748357682118,0.00861828,109340.0,109330.0,6.13926212]
[1748357682344,0.00861828,109340.0,109330.0,6.16006212]
[1748357682555,0.00861828,109340.0,109330.0,6.56006212]
[1748357682769,0.00861828,109340.0,109330.0,6.57361902]
[1748357682987,0.00961828,109340.0,109330.0,6.57761902]
[1748357683475,0.22911523,109340.0,109330.0,5.81029999]
[1748357683661,0.04619956,109340.0,109330.0,4.3559383]
[1748357683900,0.03705395,109340.0,109330.0,4.36508433]
[1748357684120,0.03705395,109340.0,109330.0,4.31415803]
[1748357684351,0.03705395,109340.0,109330.0,6.49178503]
[1748357684583,0.04519939,109340.0,109330.0,5.72606003]
[1748357684821,0.04519939,109340.0,109330.0,5.72806003]
[1748357685044,0.054345,109340.0,109330.0,5.72806003]
[1748357685266,0.054345,109340.0,109330.0,6.49678503]
[1748357685474,0.054345,109340.0,109330.0,6.90022503]
[1748357685708,0.054345,109340.0,109330.0,6.49678503]
[1748357685961,0.272025,109340.0,109330.0,1.65781685]
[1748357686209,0.272025,109340.0,109330.0,1.70035685]
[1748357686461,0.272025,109340.0,109330.0,1.84141685]
[1748357686700,0.272025,109340.0,109330.0,1.80498885]
[1748357686936,0.272025,109340.0,109330.0,1.80198885]
[1748357687386,0.272025,109340.0,109330.0,2.04402085]
[1748357687618,0.272025,109340.0,109330.0,1.85006453]
[1748357687836,0.272025,109340.0,109330.0,1.77575285]
[1748357688056,0.272025,109340.0,109330.0,1.77375285]
[1748357688481,0.272025,109340.0,109330.0,1.92305585]
[1748357688701,0.272025,109340.0,109330.0,1.86214485]
[1748357689387,0.272025,109340.0,109330.0,2.11546485]
[1748357690502,0.272025,109340.0,109330.0,2.46829985]
[1748357690936,0.272025,109340.0,109330.0,2.37263585]
[1748357691359,0.272025,109340.0,109330.0,2.40006285]
[1748357691573,0.272025,109340.0,109330.0,2.42745585]
[1748357691792,0.209825,109340.0,109330.0,3.04610303]
[1748357692001,0.209825,109340.0,109330.0,3.12246159]
[1748357692002,0.01776331,109340.0,109330.0,3.12246159]
[1748357692201,0.03605378,109340.0,109330.0,3.12912934]
[1748357692362,0.0360537,109340.0,109330.0,6.93822634]
[1748357692580,0.0360537,109340.0,109330.0,6.69323134]
[1748357692581,0.02690842,109340.0,109330.0,6.69323134]
[1748357692893,0.25402879,109360.0,109350.0,0.53204372]
[1748357693097,0.25402879,109360.0,109350.0,3.30026573]
[1748357693275,0.25402879,109360.0,109350.0,3.06626573]
[1748357693875,0.08043654,109360.0,109350.0,3.28574344]
[1748357694076,0.08043654,109360.0,109350.0,5.93624329]
[1748357694077,0.02757997,109360.0,109350.0,5.93624329]
[1748357694437,0.01943552,109360.0,109350.0,5.93624329]
[1748357694649,0.01943552,109360.0,109350.0,6.33624329]
[1748357694858,0.02857929,109360.0,109350.0,6.36366229]
[1748357695084,0.02857929,109360.0,109350.0,7.28196129]
[1748357695085,0.02043544,109360.0,109350.0,7.28196129]
[1748357695296,0.00214857,109360.0,109350.0,7.31496129]
[1748357695757,1e-08,109360.0,109350.0,6.97496129]
[1748357695977,0.00914336,109360.0,109350.0,6.68777242]
[1748357696395,1e-08,109360.0,109350.0,6.68777242]
[1748357696603,0.00914336,109360.0,109350.0,6.25205764]
[1748357696818,0.00914336,109360.0,109350.0,6.68777242]
[1748357697027,1e-08,109360.0,109350.0,6.68777242]
[1748357697236,0.00914336,109360.0,109350.0,6.68777242]
[1748357697652,0.00914336,109360.0,109350.0,7.02777242]
[1748357697859,0.00914336,109360.0,109350.0,7.0452957]
[1748357698289,1e-08,109360.0,109350.0,7.0452957]
[1748357698490,1e-08,109360.0,109350.0,7.0784957]
[1748357698694,0.00914336,109360.0,109350.0,7.0784957]
[1748357699776,0.01828688,109360.0,109350.0,7.0452957]
[1748357700014,0.01828688,109360.0,109350.0,7.11960738]
[1748357700223,0.01828688,109360.0,109350.0,7.0452957]
[1748357700462,0.02743057,109360.0,109350.0,7.03615134]
[1748357700683,0.26306986,109360.0,109350.0,1.17758436]
[1748357700901,0.26306986,109360.0,109350.0,1.25350536]
[1748357701107,0.26306986,109360.0,109350.0,1.38338436]
[1748357701330,0.26306986,109360.0,109350.0,0.66685436]
[1748357701553,0.26306986,109360.0,109350.0,0.68579836]
[1748357701770,0.26306986,109360.0,109350.0,1.02579836]
[1748357701985,0.26306986,109360.0,109350.0,1.2086973]
[1748357702197,0.25392617,109360.0,109350.0,1.46151314]
[1748357702401,0.25392617,109360.0,109350.0,1.64441208]
[1748357702852,0.25392617,109360.0,109350.0,1.46151314]
[1748357704298,0.25392617,109360.0,109350.0,1.64441208]
[1748357704514,0.25392617,109360.0,109350.0,1.65355702]
[1748357704723,0.25392617,109360.0,109350.0,1.46151314]
[1748357705181,0.25392617,109360.0,109350.0,0.72929836]
[1748357705395,0.25392617,109360.0,109350.0,0.53884441]
[1748357705834,0.25392617,109360.0,109350.0,0.63824441]
[1748357706527,0.25392617,109360.0,109350.0,1.26600291]
[1748357706733,0.25392617,109360.0,109350.0,1.35705686]
[1748357707199,0.25392617,109360.0,109350.0,1.36620155]
[1748357707427,0.25392617,109360.0,109350.0,1.77534616]
[1748357707922,0.25392617,109360.0,109350.0,1.37534616]
[1748357708161,0.25392617,109360.0,109350.0,1.38449068]
[1748357708394,0.25392617,109360.0,109350.0,3.19069468]
[1748357708618,0.25392617,109360.0,109350.0,1.87889008]
[1748357708840,0.25392617,109360.0,109350.0,1.52726124]
[1748357709086,0.25392617,109360.0,109350.0,1.5364061]
[1748357709295,0.25392617,109360.0,109350.0,2.83298788]
[1748357709533,0.25392617,109360.0,109350.0,2.847483]
[1748357709788,0.25392617,109360.0,109350.0,2.83298788]
[1748357710021,0.25392617,109360.0,109350.0,2.66896849]
[1748357710236,0.25392617,109360.0,109350.0,1.50086649]
[1748357710420,0.25392617,109360.0,109350.0,3.52109661]
[1748357710666,0.20116986,109360.0,109350.0,3.96595575]
[1748357710883,0.20116986,109360.0,109350.0,3.95681139]
[1748357710884,0.21945799,109360.0,109350.0,3.95681139]
[1748357711096,0.2738143,109360.0,109350.0,3.71393478]
[1748357711312,0.2738143,109360.0,109350.0,2.26334091]
[1748357711535,0.01828797,109360.0,109350.0,4.40587641]
[1748357711752,0.18486621,109370.0,109360.0,0.55031353]
[1748357711753,0.00613267,109370.0,109360.0,0.55031353]
[1748357711966,0.24647113,109380.0,109370.0,0.19200869]
[1748357712184,0.19200852,109370.0,109360.0,1.38016226]
[1748357712392,0.27179448,109370.0,109360.0,3.44350226]
[1748357712619,0.2900801,109370.0,109360.0,3.43435874]
[1748357712924,0.26265196,109370.0,109360.0,1.048591]
[1748357713116,0.33784836,109370.0,109360.0,0.0994]
[1748357713325,0.26465196,109370.0,109360.0,0.0994]
[1748357713757,0.26665196,109370.0,109360.0,0.0994]
[1748357715153,0.25402616,109360.0,109350.0,1.48968919]
[1748357715380,0.25402616,109360.0,109350.0,2.13748524]
[1748357715627,0.25402616,109360.0,109350.0,0.99748729]
[1748357715864,0.59402616,109360.0,109350.0,0.45421129]
[1748357716082,0.72916928,109360.0,109350.0,0.53608801]
[1748357716507,0.59402616,109360.0,109350.0,0.53608801]
[1748357716990,0.59502616,109360.0,109350.0,0.43668801]
[1748357717224,0.59602616,109360.0,109350.0,0.53608801]
[1748357717465,0.59802616,109360.0,109350.0,0.53608801]
[1748357717712,0.59802616,109360.0,109350.0,0.43668801]
[1748357717954,0.68908011,109360.0,109350.0,0.53608801]
[1748357719405,0.68908011,109360.0,109350.0,0.55175044]
[1748357719703,0.59802616,109360.0,109350.0,0.55175044]
[1748357720607,0.25802616,109360.0,109350.0,0.55175044]
[1748357721099,0.24102616,109360.0,109350.0,0.55175044]
[1748357721322,0.5531301,109360.0,109350.0,0.55175044]
[1748357721560,0.2501701,109360.0,109350.0,0.60712548]
[1748357721785,0.2501701,109360.0,109350.0,1.55964048]
[1748357721986,0.22931396,109360.0,109350.0,2.03168006]
[1748357722347,0.19731396,109360.0,109350.0,2.33464006]
[1748357722561,0.19731396,109360.0,109350.0,2.08722122]
[1748357722729,0.25991396,109360.0,109350.0,2.08722122]
[1748357722941,0.25791396,109360.0,109350.0,2.08722122]
[1748357723348,0.25791396,109360.0,109350.0,1.65150644]
[1748357723972,0.25791396,109360.0,109350.0,1.34858644]
[1748357724172,0.25791396,109360.0,109350.0,0.90876944]
[1748357724375,0.25791396,109360.0,109350.0,1.00820944]
[1748357727261,0.22641396,109360.0,109350.0,1.00820944]
[1748357727893,0.25781396,109360.0,109350.0,1.00820944]
[1748357728691,0.24081396,109360.0,109350.0,1.00820944]
[1748357728908,0.24081396,109360.0,109350.0,1.19110838]
[1748357729159,0.24081396,109360.0,109350.0,1.00820944]
[1748357729941,0.24081396,109360.0,109350.0,1.40820944]
[1748357730871,0.24081396,109360.0,109350.0,1.70470944]
[1748357731113,0.24081396,109360.0,109350.0,2.04470944]
[1748357732438,0.24081396,109360.0,109350.0,2.48042422]
[1748357734423,0.24081396,109360.0,109350.0,2.04470944]
[1748357734641,0.24081396,109360.0,109350.0,2.48042422]
[1748357735303,0.24081396,109360.0,109350.0,2.08582422]
[1748357736625,0.22381396,109360.0,109350.0,2.08582422]
[1748357736845,0.22381396,109360.0,109350.0,1.68582422]
[1748357737811,0.22381396,109360.0,109350.0,1.98850422]